[Event "4NCL Div 2 2024-25"]
[Site "England"]
[Date "2024.11.23"]
[Round "1.1"]
[White "Hobson, Kenneth"]
[Black "Dunn, Maxim"]
[Result "1/2-1/2"]
[ECO "B90"]
[WhiteElo "2152"]
[BlackElo "1934"]
[Annotator "RC"]
[PlyCount "64"]
[EventDate "2024.11.23"]
[EventType "team-tourn"]
[EventCountry "ENG"]
[SourceTitle "playchess.com"]
[Source "ChessBase"]
[SourceQuality "1"]
[TimeControl "40/6000+30:3000+30"]

1. e4 {[%emt 0:10:04]} c5 {[%emt 0:10:07]} 2. Nf3 {[%emt 0:00:30]} d6 {[%emt 0:00:07]} 3. d4 {[%emt 0:01:18]} cxd4 {[%emt 0:00:07]} 4. Nxd4 {[%emt 0:00:05]} Nf6 {[%emt 0:00:06]} 5. Nc3 {[%emt 0:00:07]} a6 {[%emt 0:00:04]} 6. Qd3 {[%emt 0:00:56]} g6 {[%emt 0:06:38]} 7. Bg5 {[%emt 0:01:05]} Bg7 {[%emt 0:00:14]} 8. Be2 {[%emt 0:01:54]} O-O {[%emt 0:01:32]} 9. f4 {[%emt 0:01:41]} Nc6 {[%emt 0:04:51]} 10. Nxc6 {[%emt 0:13:32]} bxc6 {[%emt 0:00:08]} 11. O-O {[%emt 0:03:14]} a5 {[%emt 0:04:52]} 12. Qe3 {[%emt 0:07:15]} Rb8 {[%emt 0:05:55]} 13. b3 {[%emt 0:07:02]} Re8 {[%emt 0:11:36]} 14. f5 {[%emt 0:11:02]} Qb6 {[%emt 0:04:30]} 15. Rad1 {[%emt 0:05:38]} Nd7 {[%emt 0:06:58]} 16. Qxb6 {[%emt 0:02:51]} Nxb6 {[%emt 0:04:17]} 17. f6 {[%emt 0:01:56]} h6 {[%emt 0:06:02]} 18. Bh4 {[%emt 0:02:43]} g5 {[%emt 0:01:03]} 19. fxg7 {[%emt 0:03:05]} gxh4 {[%emt 0:00:13]} 20. Rf4 {[%emt 0:02:31]} Kxg7 {[%emt 0:03:11]} 21. Rxh4 {[%emt 0:01:02]} Nd7 {[%emt 0:02:11]} 22. Bg4 {[%emt 0:04:30]} Ne5 {[%emt 0:04:39]} 23. Bxc8 {[%emt 0:00:07]} Rexc8 {[%emt 0:00:25]} 24. Ne2 {[%emt 0:01:02]} Ng6 {[%emt 0:08:03]} 25. Rh5 {[%emt 0:00:52]} Rb5 {[%emt 0:02:01]} 26. Rxb5 {[%emt 0:00:38]} cxb5 {[%emt 0:00:06]} 27. Nd4 {[%emt 0:01:38]} b4 {[%emt 0:04:04]} 28. Nf5+ {[%emt 0:01:34]} Kf6 {[%emt 0:01:12]} 29. Rd2 {[%emt 0:01:52]} h5 {[%emt 0:01:08]} 30. Nh6 {[%emt 0:13:54]} Kg7 {[%emt 0:01:04]} 31. Nf5+ {[%emt 0:00:04]} Kf6 {[%emt 0:00:08]} 32. Nh6 {[%emt 0:03:04]} Kg7 {[%emt 0:02:05]} 1/2-1/2

[Event "4NCL Div 2 2024-25"]
[Site "England"]
[Date "2024.11.23"]
[Round "1.2"]
[White "Cole, James"]
[Black "Khoury, Theo"]
[Result "1/2-1/2"]
[ECO "B53"]
[WhiteElo "1974"]
[BlackElo "2194"]
[Annotator "RC"]
[PlyCount "45"]
[EventDate "2024.11.23"]
[EventType "team-tourn"]
[EventCountry "ENG"]
[SourceTitle "playchess.com"]
[Source "ChessBase"]
[SourceQuality "1"]
[TimeControl "40/6000+30:3000+30"]

1. e4 {[%emt 0:10:03]} c5 {[%emt 0:10:10]} 2. Nf3 {[%emt 0:00:05]} d6 {[%emt 0:00:05]} 3. d4 {[%emt 0:00:04]} cxd4 {[%emt 0:00:10]} 4. Qxd4 {[%emt 0:00:08]} Nc6 {[%emt 0:00:56]} 5. Bb5 {[%emt 0:00:06]} Bd7 {[%emt 0:00:05]} 6. Bxc6 {[%emt 0:00:08]} Bxc6 {[%emt 0:00:06]} 7. Nc3 {[%emt 0:00:06]} Nf6 {[%emt 0:00:08]} 8. Bg5 {[%emt 0:00:07]} e6 {[%emt 0:00:05]} 9. O-O-O {[%emt 0:00:05]} Be7 {[%emt 0:00:02]} 10. Qd3 {[%emt 0:00:08]} Qa5 {[%emt 0:00:05]} 11. h4 {[%emt 0:00:34]} h6 {[%emt 0:06:17]} 12. Bd2 {[%emt 0:00:24]} Qa6 {[%emt 0:00:29]} 13. Qxa6 {[%emt 0:00:34]} bxa6 {[%emt 0:00:06]} 14. Rde1 {[%emt 0:00:06]} Rc8 {[%emt 0:02:10]} 15. Nd4 {[%emt 0:00:34]} Bb7 {[%emt 0:03:30]} 16. f3 {[%emt 0:01:56]} Nd7 {[%emt 0:07:09]} 17. Nb3 {[%emt 0:04:57]} Ne5 {[%emt 0:04:27]} 18. Be3 {[%emt 0:07:26]} Nc6 {[%emt 0:05:46]} 19. Rd1 {[%emt 0:02:13]} O-O {[%emt 0:02:37]} 20. Nd4 {[%emt 0:09:51]} Ne5 {[%emt 0:03:50]} 21. Nb3 {[%emt 0:01:45]} Nc6 {[%emt 0:04:13]} 22. Nd4 {[%emt 0:03:15]} Ne5 {[%emt 0:04:21]} 23. Nb3 {[%emt 0:00:09]} 1/2-1/2

[Event "4NCL Div 2 2024-25"]
[Site "England"]
[Date "2024.11.23"]
[Round "1.3"]
[White "Zakarian, Dimitrios Levon"]
[Black "Moore, Gerald"]
[Result "1-0"]
[ECO "A80"]
[WhiteElo "1968"]
[BlackElo "2033"]
[Annotator "NA RC"]
[PlyCount "63"]
[EventDate "2024.11.23"]
[EventType "team-tourn"]
[EventCountry "ENG"]
[SourceTitle "playchess.com"]
[Source "ChessBase"]
[SourceQuality "1"]
[TimeControl "40/6000+30:3000+30"]

1. d4 {[%emt 0:10:02]} f5 {[%emt 0:10:11]} 2. Bg5 {[%emt 0:00:04]} g6 {[%emt 0:00:12]} 3. Nc3 {[%emt 0:00:06]} Bg7 {[%emt 0:00:06]} 4. e4 {[%emt 0:00:04]} fxe4 {[%emt 0:00:11]} 5. Nxe4 {[%emt 0:00:06]} d5 {[%emt 0:00:13]} 6. Ng3 {[%emt 0:00:04]} c5 {[%emt 0:00:46]} 7. Nf3 {[%emt 0:00:06]} Nc6 {[%emt 0:00:20]} 8. c3 {[%emt 0:01:01]} cxd4 {[%emt 0:01:11]} 9. Nxd4 {[%emt 0:01:39]} Nxd4 {[%emt 0:03:04]} 10. cxd4 {[%emt 0:00:06]} Qa5+ {[%emt 0:04:29]} 11. Bd2 {[%emt 0:04:33]} Qb6 {[%emt 0:00:14]} 12. Bc3 {[%emt 0:03:29]} Nh6 {[%emt 0:06:42]} 13. Be2 {[%emt 0:02:49]} O-O {[%emt 0:01:31]} 14. Bf3 {[%emt 0:01:16]} e6 {[%emt 0:18:29]} 15. O-O {[%emt 0:02:13]} Bd7 {[%emt 0:00:16]} 16. Re1 {[%emt 0:04:42]} Rf7 {[%emt 0:04:21]} 17. Qd2 {[%emt 0:04:52]} Raf8 {[%emt 0:09:38]} 18. Rad1 {[%emt 0:03:48]} Qd8 {[%emt 0:04:26]} 19. Re3 {[%emt 0:02:20]} Nf5 {[%emt 0:11:47]} 20. Nxf5 {[%emt 0:00:54]} Rxf5 {[%emt 0:00:13]} 21. Qe2 {[%emt 0:18:41]} Qh4 {[%emt 0:06:14]} 22. a4 {[%emt 0:05:56]} Bxa4 {[%emt 0:04:43]} 23. Ra1 {[%emt 0:03:36]} Bd7 {[%emt 0:00:51]} 24. Rxa7 {[%emt 0:01:40]} Bxd4 {[%emt 0:03:14]} 25. Bxd4 {[%emt 0:00:14]} Qxd4 {[%emt 0:00:06]} 26. Rxb7 {[%emt 0:00:17]} Bc8 {[%emt 0:00:39]} 27. Rc7 {[%emt 0:01:42]} Qb6 {[%emt 0:06:26]} 28. Rec3 {[%emt 0:03:03]} Ba6 {[%emt 0:01:50]} 29. Qe1 {[%emt 0:00:16]} Bc4 {[%emt 0:00:23]} 30. Re7 {[%emt 0:00:51]} R5f6 {[%emt 0:02:24]} 31. b3 {[%emt 0:14:30]} Bxb3 {[%emt 0:01:35]} 32. Qb1 {[%emt 0:01:00]} 1-0

[Event "4NCL Div 2 2024-25"]
[Site "England"]
[Date "2024.11.23"]
[Round "1.4"]
[White "Sagues, Vincent"]
[Black "Pozimski, Szymon"]
[Result "0-1"]
[ECO "B01"]
[WhiteElo "1973"]
[BlackElo "2003"]
[Annotator "NA RC"]
[PlyCount "158"]
[EventDate "2024.11.23"]
[EventType "team-tourn"]
[EventCountry "ENG"]
[SourceTitle "playchess.com"]
[Source "ChessBase"]
[SourceQuality "1"]
[TimeControl "40/6000+30:3000+30"]

1. e4 {[%emt 0:10:04]} d5 {[%emt 0:10:41]} 2. exd5 {[%emt 0:00:24]} Qxd5 {[%emt 0:00:48]} 3. Nc3 {[%emt 0:00:02]} Qd6 {[%emt 0:00:01]} 4. d4 {[%emt 0:00:39]} Nf6 {[%emt 0:00:04]} 5. Nf3 {[%emt 0:00:19]} g6 {[%emt 0:00:02]} 6. g3 {[%emt 0:01:20]} Bg4 {[%emt 0:01:42]} 7. Bg2 {[%emt 0:01:29]} Qe6+ {[%emt 0:01:28]} 8. Qe2 {[%emt 0:03:05]} Qxe2+ {[%emt 0:10:39]} 9. Nxe2 {[%emt 0:01:15]} c6 {[%emt 0:01:20]} 10. h3 {[%emt 0:06:16]} Bf5 {[%emt 0:03:38]} 11. c3 {[%emt 0:00:50]} Be4 {[%emt 0:05:39]} 12. O-O {[%emt 0:03:41]} Bg7 {[%emt 0:00:29]} 13. Bf4 {[%emt 0:07:01]} Nbd7 {[%emt 0:00:55]} 14. Rfe1 {[%emt 0:02:49]} O-O {[%emt 0:02:23]} 15. Ne5 {[%emt 0:01:18]} Bxg2 {[%emt 0:00:30]} 16. Kxg2 {[%emt 0:00:44]} Rad8 {[%emt 0:02:38]} 17. Nxd7 {[%emt 0:02:06]} Rxd7 {[%emt 0:00:35]} 18. Be5 {[%emt 0:01:32]} Nd5 {[%emt 0:02:34]} 19. Bxg7 {[%emt 0:00:40]} Kxg7 {[%emt 1:03:54]} 20. Nc1 {[%emt 0:01:50]} e6 {[%emt 0:00:00]} 21. Nd3 {[%emt 0:02:17]} Rfd8 {[%emt 0:00:00]} 22. Ne5 {[%emt 0:00:46]} Rc7 {[%emt 0:00:00]} 23. Rad1 {[%emt 0:02:04]} Nb6 {[%emt 0:00:00]} 24. f4 {[%emt 0:03:44]} Na4 {[%emt 0:00:00]} 25. Nd3 {[%emt 0:02:18]} Rcd7 {[%emt 0:00:00]} 26. Rc1 {[%emt 0:10:19]} Rc7 {[%emt 0:00:00]} 27. b3 {[%emt 0:07:49]} Nb6 {[%emt 0:00:00]} 28. Nc5 {[%emt 0:01:18]} Nd7 {[%emt 0:00:00]} 29. Nxd7 {[%emt 0:00:23]} Rcxd7 {[%emt 0:00:00]} 30. Re5 {[%emt 0:00:38]} b6 {[%emt 0:00:00]} 31. b4 {[%emt 0:01:32]} Ra8 {[%emt 0:00:00]} 32. Rce1 {[%emt 0:00:46]} Rb7 {[%emt 0:00:00]} 33. R1e2 {[%emt 0:00:36]} a5 {[%emt 0:00:00]} 34. bxa5 {[%emt 0:08:25]} bxa5 {[%emt 0:00:00]} 35. a4 {[%emt 0:03:06]} Rb3 {[%emt 0:00:00]} 36. Rc5 {[%emt 0:00:11]} Ra3 {[%emt 0:04:22]} 37. Rb2 {[%emt 0:00:50]} Rxa4 {[%emt 0:00:06]} 38. Rxc6 {[%emt 0:00:11]} Ra7 {[%emt 0:01:07]} 39. Rbb6 {[%emt 0:01:48]} Ra2+ {[%emt 0:00:54]} 40. Kf3 {[%emt 0:00:09]} Rc2 {[%emt 0:03:21]} 41. Rb3 {[%emt 0:53:12]} Ra2 {[%emt 0:24:28]} 42. Rbb6 {[%emt 0:00:00]} a4 {[%emt 0:05:38]} 43. Ke4 {[%emt 0:00:00]} Re2+ {[%emt 0:08:33]} 44. Kd3 {[%emt 0:00:00]} Rg2 {[%emt 0:00:14]} 45. c4 {[%emt 0:00:00]} Rxg3+ {[%emt 0:00:08]} 46. Ke4 {[%emt 0:00:00]} a3 {[%emt 0:02:23]} 47. Ra6 {[%emt 0:00:00]} Rd7 {[%emt 0:01:06]} 48. d5 {[%emt 0:00:00]} exd5+ {[%emt 0:04:27]} 49. cxd5 {[%emt 0:00:00]} Rxh3 {[%emt 0:01:01]} 50. d6 {[%emt 0:00:00]} Kf6 {[%emt 0:01:03]} 51. Kd5 {[%emt 0:00:00]} Rd3+ {[%emt 0:01:15]} 52. Ke4 {[%emt 0:00:00]} Rd1 {[%emt 0:00:42]} 53. f5 {[%emt 0:00:00]} gxf5+ {[%emt 0:00:53]} 54. Kf4 {[%emt 0:00:00]} Rd4+ {[%emt 0:01:24]} 55. Ke3 {[%emt 0:00:00]} Re4+ {[%emt 0:00:26]} 56. Kf3 {[%emt 0:00:00]} Re6 {[%emt 0:00:08]} 57. Kf4 {[%emt 0:00:00]} h5 {[%emt 0:00:56]} 58. Rxa3 {[%emt 0:03:43]} Rdxd6 {[%emt 0:00:19]} 59. Rc8 {[%emt 0:01:00]} Rd4+ {[%emt 0:00:47]} 60. Kf3 {[%emt 0:00:08]} Kg5 {[%emt 0:00:46]} 61. Rg8+ {[%emt 0:00:23]} Rg6 {[%emt 0:00:23]} 62. Rf8 {[%emt 0:00:07]} Rf4+ {[%emt 0:00:14]} 63. Kg3 {[%emt 0:01:26]} Rg4+ {[%emt 0:00:38]} 64. Kh3 {[%emt 0:00:35]} f6 {[%emt 0:00:29]} 65. Ra7 {[%emt 0:00:46]} Re4 {[%emt 0:01:18]} 66. Rh8 {[%emt 0:00:24]} Re3+ {[%emt 0:00:20]} 67. Kg2 {[%emt 0:00:17]} Kg4 {[%emt 0:00:49]} 68. Kf2 {[%emt 0:00:54]} Rb3 {[%emt 0:00:19]} 69. Ra1 {[%emt 0:01:00]} Rb2+ {[%emt 0:00:10]} 70. Ke3 {[%emt 0:00:08]} f4+ {[%emt 0:00:11]} 71. Kd3 {[%emt 0:00:51]} Rb3+ {[%emt 0:01:06]} 72. Ke2 {[%emt 0:00:37]} f5 {[%emt 0:01:10]} 73. Rg1+ {[%emt 0:00:22]} Rg3 {[%emt 0:00:01]} 74. Rh1 {[%emt 0:00:04]} f3+ {[%emt 0:00:16]} 75. Ke3 {[%emt 0:00:21]} Rg5 {[%emt 0:00:43]} 76. Ra1 {[%emt 0:00:40]} f4+ {[%emt 0:00:12]} 77. Ke4 {[%emt 0:00:05]} f2 {[%emt 0:01:05]} 78. Rf8 {[%emt 0:00:18]} Re3+ {[%emt 0:00:06]} 79. Kd4 {[%emt 0:00:10]} Re2 {[%emt 0:04:03]} 0-1

[Event "4NCL Div 2 2024-25"]
[Site "England"]
[Date "2024.11.23"]
[Round "1.5"]
[White "Manley, Jon P"]
[Black "Hughes, Roy"]
[Result "1-0"]
[ECO "B01"]
[WhiteElo "2072"]
[BlackElo "2008"]
[Annotator "NA RC"]
[PlyCount "109"]
[EventDate "2024.11.23"]
[EventType "team-tourn"]
[EventCountry "ENG"]
[SourceTitle "playchess.com"]
[Source "ChessBase"]
[SourceQuality "1"]
[TimeControl "40/6000+30:3000+30"]

1. e4 {[%emt 0:10:02]} d5 {[%emt 0:10:30]} 2. exd5 {[%emt 0:00:48]} Qxd5 {[%emt 0:00:16]} 3. Nc3 {[%emt 0:00:34]} Qd6 {[%emt 0:00:19]} 4. d4 {[%emt 0:01:54]} Nf6 {[%emt 0:00:45]} 5. Nf3 {[%emt 0:01:32]} c6 {[%emt 0:00:55]} 6. Ne5 {[%emt 0:08:47]} Nbd7 {[%emt 0:00:24]} 7. Nc4 {[%emt 0:01:46]} Qc7 {[%emt 0:00:13]} 8. g3 {[%emt 0:18:08]} Nb6 {[%emt 0:08:26]} 9. Bf4 {[%emt 0:05:12]} Qd8 {[%emt 0:00:35]} 10. Ne5 {[%emt 0:07:55]} Nbd5 {[%emt 0:02:05]} 11. Bd2 {[%emt 0:03:27]} Bf5 {[%emt 0:05:04]} 12. g4 {[%emt 0:16:55]} Be6 {[%emt 0:08:38]} 13. Bg2 {[%emt 0:04:10]} g6 {[%emt 0:16:50]} 14. Qe2 {[%emt 0:05:15]} Qb6 {[%emt 0:03:31]} 15. Nxd5 {[%emt 0:02:23]} cxd5 {[%emt 0:02:04]} 16. c3 {[%emt 0:03:31]} Bg7 {[%emt 0:09:27]} 17. O-O {[%emt 0:00:33]} Rd8 {[%emt 0:05:45]} 18. f4 {[%emt 0:02:58]} Bc8 {[%emt 0:03:33]} 19. b3 {[%emt 0:01:16]} a6 {[%emt 0:03:48]} 20. Rae1 {[%emt 0:02:23]} O-O {[%emt 0:01:30]} 21. Kh1 {[%emt 0:00:53]} h5 {[%emt 0:04:24]} 22. h3 {[%emt 0:01:04]} Rfe8 {[%emt 0:04:21]} 23. f5 {[%emt 0:01:08]} hxg4 {[%emt 0:02:08]} 24. fxg6 {[%emt 0:01:02]} fxg6 {[%emt 0:00:52]} 25. hxg4 {[%emt 0:02:14]} Nh7 {[%emt 0:05:07]} 26. Nf7 {[%emt 0:01:21]} Rd7 {[%emt 0:01:08]} 27. Ng5 {[%emt 0:00:41]} Nxg5 {[%emt 0:01:46]} 28. Bxg5 {[%emt 0:00:04]} e5 {[%emt 0:00:33]} 29. dxe5 {[%emt 0:00:38]} Bxe5 {[%emt 0:02:10]} 30. Bh6 {[%emt 0:02:35]} Qd6 {[%emt 0:02:44]} 31. g5 {[%emt 0:00:32]} Rde7 {[%emt 0:00:50]} 32. Qd3 {[%emt 0:00:49]} Bf5 {[%emt 0:02:37]} 33. Qxd5+ {[%emt 0:00:26]} Qxd5 {[%emt 0:00:02]} 34. Bxd5+ {[%emt 0:00:04]} Kh7 {[%emt 0:00:13]} 35. c4 {[%emt 0:00:56]} Bd6 {[%emt 0:00:39]} 36. Rxe7+ {[%emt 0:00:39]} Rxe7 {[%emt 0:01:52]} 37. Bf8 {[%emt 0:00:54]} Rd7 {[%emt 0:00:15]} 38. Bxd6 {[%emt 0:00:19]} Rxd6 {[%emt 0:00:01]} 39. Bxb7 {[%emt 0:01:57]} Rd2 {[%emt 0:00:25]} 40. Rc1 {[%emt 0:01:53]} Rxa2 {[%emt 0:00:28]} 41. Bd5 {[%emt 0:24:30]} a5 {[%emt 0:23:30]} 42. Re1 {[%emt 0:05:20]} a4 {[%emt 0:04:17]} 43. Re7+ {[%emt 0:01:15]} Kh8 {[%emt 0:00:02]} 44. bxa4 {[%emt 0:00:36]} Rxa4 {[%emt 0:00:03]} 45. Kg2 {[%emt 0:00:52]} Ra3 {[%emt 0:00:13]} 46. Kf2 {[%emt 0:00:40]} Rc3 {[%emt 0:00:16]} 47. Re3 {[%emt 0:03:14]} Rc1 {[%emt 0:01:34]} 48. Rg3 {[%emt 0:02:45]} Kg7 {[%emt 0:00:22]} 49. Ke3 {[%emt 0:00:17]} Kf8 {[%emt 0:00:40]} 50. Kd4 {[%emt 0:00:38]} Ke7 {[%emt 0:00:16]} 51. Kc5 {[%emt 0:02:44]} Kd7 {[%emt 0:00:16]} 52. Ra3 {[%emt 0:01:18]} Rb1 {[%emt 0:15:00]} 53. Ra7+ {[%emt 0:01:25]} Kc8 {[%emt 0:01:15]} 54. Kc6 {[%emt 0:02:39]} Rb8 {[%emt 0:00:58]} 55. Rh7 {[%emt 0:00:52]} 1-0

[Event "4NCL Div 2 2024-25"]
[Site "England"]
[Date "2024.11.23"]
[Round "1.6"]
[White "Gibbs, Dominic V"]
[Black "Murawski, Jan"]
[Result "1-0"]
[ECO "C88"]
[WhiteElo "1980"]
[BlackElo "2065"]
[Annotator "NA RC"]
[PlyCount "75"]
[EventDate "2024.11.23"]
[EventType "team-tourn"]
[EventCountry "ENG"]
[SourceTitle "playchess.com"]
[Source "ChessBase"]
[SourceQuality "1"]
[TimeControl "40/6000+30:3000+30"]

1. e4 {[%emt 0:10:04]} e5 {[%emt 0:10:07]} 2. Nf3 {[%emt 0:00:10]} Nc6 {[%emt 0:00:04]} 3. Bb5 {[%emt 0:00:05]} a6 {[%emt 0:00:04]} 4. Ba4 {[%emt 0:00:06]} Nf6 {[%emt 0:00:03]} 5. O-O {[%emt 0:00:12]} Be7 {[%emt 0:00:15]} 6. Re1 {[%emt 0:00:35]} b5 {[%emt 0:00:12]} 7. Bb3 {[%emt 0:00:06]} O-O {[%emt 0:00:08]} 8. a4 {[%emt 0:00:07]} Bb7 {[%emt 0:02:04]} 9. d3 {[%emt 0:00:11]} d6 {[%emt 0:01:43]} 10. Nbd2 {[%emt 0:00:33]} Nb8 {[%emt 0:01:47]} 11. axb5 {[%emt 0:05:15]} axb5 {[%emt 0:01:56]} 12. Rxa8 {[%emt 0:00:08]} Bxa8 {[%emt 0:00:02]} 13. Nf1 {[%emt 0:00:32]} Nbd7 {[%emt 0:03:07]} 14. c3 {[%emt 0:00:44]} Nc5 {[%emt 0:06:57]} 15. Bc2 {[%emt 0:00:15]} Re8 {[%emt 0:03:43]} 16. Ng3 {[%emt 0:01:19]} Bf8 {[%emt 0:02:58]} 17. b4 {[%emt 0:03:10]} Ncd7 {[%emt 0:05:08]} 18. Bb3 {[%emt 0:04:26]} g6 {[%emt 0:17:41]} 19. Qe2 {[%emt 0:11:23]} Bg7 {[%emt 0:04:15]} 20. Qa2 {[%emt 0:04:35]} Rf8 {[%emt 0:10:47]} 21. Ng5 {[%emt 0:02:13]} d5 {[%emt 0:02:58]} 22. exd5 {[%emt 0:02:36]} h6 {[%emt 0:03:15]} 23. Nf3 {[%emt 0:03:00]} c6 {[%emt 0:05:57]} 24. c4 {[%emt 0:16:21]} cxd5 {[%emt 0:03:27]} 25. cxd5 {[%emt 0:00:32]} Nb6 {[%emt 0:08:17]} 26. Qa5 {[%emt 0:07:28]} Nfxd5 {[%emt 0:09:56]} 27. Qxb5 {[%emt 0:01:21]} Nf4 {[%emt 0:03:02]} 28. Bxf4 {[%emt 0:12:00]} exf4 {[%emt 0:00:05]} 29. Ne4 {[%emt 0:00:25]} Kh7 {[%emt 0:00:53]} 30. h4 {[%emt 0:07:43]} Nd5 {[%emt 0:02:21]} 31. Qc5 {[%emt 0:02:42]} f5 {[%emt 0:01:14]} 32. Nd6 {[%emt 0:04:07]} Nf6 {[%emt 0:00:46]} 33. Nxf5 {[%emt 0:05:32]} gxf5 {[%emt 0:01:06]} 34. Qxf5+ {[%emt 0:00:13]} Kh8 {[%emt 0:00:02]} 35. Ne5 {[%emt 0:00:20]} Bd5 {[%emt 0:00:57]} 36. Ng6+ {[%emt 0:02:00]} Kg8 {[%emt 0:00:01]} 37. Bxd5+ {[%emt 0:01:44]} Qxd5 {[%emt 0:00:08]} 38. Ne7+ {[%emt 0:00:23]} 1-0

[Event "4NCL Div 2 2024-25"]
[Site "England"]
[Date "2024.11.23"]
[Round "1.7"]
[White "Hariharan, Shambavi"]
[Black "Gilmore, Simon N"]
[Result "1/2-1/2"]
[ECO "E16"]
[WhiteElo "1940"]
[BlackElo "1959"]
[Annotator "NA"]
[PlyCount "78"]
[EventDate "2024.11.23"]
[EventType "team-tourn"]
[EventCountry "ENG"]
[SourceTitle "playchess.com"]
[Source "ChessBase"]
[SourceQuality "1"]
[TimeControl "40/6000+30:3000+30"]

1. d4 {[%emt 0:10:05]} Nf6 {[%emt 0:10:05]} 2. c4 {[%emt 0:00:12]} e6 {[%emt 0:00:05]} 3. Nf3 {[%emt 0:00:10]} b6 {[%emt 0:00:11]} 4. g3 {[%emt 0:00:29]} Ba6 {[%emt 0:00:13]} 5. Nbd2 {[%emt 0:01:56]} Be7 {[%emt 0:02:16]} 6. Bg2 {[%emt 0:00:39]} Bb7 {[%emt 0:00:27]} 7. O-O {[%emt 0:00:17]} O-O {[%emt 0:00:17]} 8. Qc2 {[%emt 0:01:16]} d5 {[%emt 0:02:21]} 9. Ne5 {[%emt 0:03:40]} c6 {[%emt 0:02:29]} 10. Rd1 {[%emt 0:01:30]} Nfd7 {[%emt 0:05:46]} 11. Nxd7 {[%emt 0:02:36]} Nxd7 {[%emt 0:00:31]} 12. e4 {[%emt 0:00:15]} Rc8 {[%emt 0:03:20]} 13. Qa4 {[%emt 0:16:15]} Qc7 {[%emt 0:11:44]} 14. Nb1 {[%emt 0:08:00]} dxc4 {[%emt 0:11:59]} 15. Qxc4 {[%emt 0:02:52]} c5 {[%emt 0:01:16]} 16. Bf4 {[%emt 0:01:25]} Bd6 {[%emt 0:04:01]} 17. Bxd6 {[%emt 0:06:53]} Qxd6 {[%emt 0:00:10]} 18. Nc3 {[%emt 0:00:15]} Rfd8 {[%emt 0:07:01]} 19. e5 {[%emt 0:05:31]} Qb8 {[%emt 0:00:35]} 20. Bxb7 {[%emt 0:01:02]} Qxb7 {[%emt 0:00:09]} 21. Nb5 {[%emt 0:00:22]} Rb8 {[%emt 0:21:18]} 22. Nd6 {[%emt 0:02:20]} Qc6 {[%emt 0:05:08]} 23. f4 {[%emt 0:02:59]} b5 {[%emt 0:01:04]} 24. Qc3 {[%emt 0:02:19]} c4 {[%emt 0:01:19]} 25. b3 {[%emt 0:06:07]} Nb6 {[%emt 0:02:55]} 26. bxc4 {[%emt 0:01:18]} Nxc4 {[%emt 0:02:05]} 27. Rac1 {[%emt 0:01:03]} Qd5 {[%emt 0:02:03]} 28. Nxc4 {[%emt 0:01:32]} bxc4 {[%emt 0:03:08]} 29. Qxc4 {[%emt 0:00:58]} Qe4 {[%emt 0:00:58]} 30. Qd3 {[%emt 0:01:02]} Qd5 {[%emt 0:00:41]} 31. Rc2 {[%emt 0:00:25]} Rb4 {[%emt 0:02:42]} 32. Qc3 {[%emt 0:02:24]} Ra4 {[%emt 0:05:57]} 33. a3 {[%emt 0:07:54]} g6 {[%emt 0:00:10]} 34. Rcd2 {[%emt 0:00:16]} Rc4 {[%emt 0:00:38]} 35. Qb3 {[%emt 0:01:14]} Rdc8 {[%emt 0:00:36]} 36. a4 {[%emt 0:02:09]} Qe4 {[%emt 0:00:57]} 37. Qd3 {[%emt 0:01:44]} Qd5 {[%emt 0:00:21]} 38. Qb3 {[%emt 0:00:14]} Qe4 {[%emt 0:00:06]} 39. Qd3 {[%emt 0:00:10]} Qd5 {[%emt 0:00:09]} 1/2-1/2

[Event "4NCL Div 2 2024-25"]
[Site "England"]
[Date "2024.11.23"]
[Round "1.8"]
[White "Latypova, Olga L"]
[Black "Udovenko, Daniel"]
[Result "0-1"]
[ECO "B90"]
[WhiteElo "1831"]
[BlackElo "1941"]
[Annotator "NA RC"]
[PlyCount "116"]
[EventDate "2024.11.23"]
[EventType "team-tourn"]
[EventCountry "ENG"]
[SourceTitle "playchess.com"]
[Source "ChessBase"]
[SourceQuality "1"]
[TimeControl "40/6000+30:3000+30"]

1. e4 {[%emt 0:10:04]} c5 {[%emt 0:10:08]} 2. Nf3 {[%emt 0:00:10]} d6 {[%emt 0:00:03]} 3. d4 {[%emt 0:00:10]} cxd4 {[%emt 0:00:03]} 4. Nxd4 {[%emt 0:00:07]} Nf6 {[%emt 0:00:03]} 5. Nc3 {[%emt 0:00:08]} a6 {[%emt 0:00:03]} 6. f3 {[%emt 0:00:09]} e5 {[%emt 0:00:02]} 7. Nb3 {[%emt 0:00:11]} Be6 {[%emt 0:00:07]} 8. Be3 {[%emt 0:00:12]} Be7 {[%emt 0:00:25]} 9. Qd2 {[%emt 0:03:16]} Nbd7 {[%emt 0:01:51]} 10. O-O-O {[%emt 0:05:16]} O-O {[%emt 0:00:21]} 11. g4 {[%emt 0:01:24]} b5 {[%emt 0:00:09]} 12. Kb1 {[%emt 0:11:20]} Nb6 {[%emt 0:01:35]} 13. Qf2 {[%emt 0:02:03]} Rb8 {[%emt 0:00:40]} 14. g5 {[%emt 0:04:11]} Nh5 {[%emt 0:06:50]} 15. h4 {[%emt 0:01:28]} Qc7 {[%emt 0:14:02]} 16. Nd5 {[%emt 0:13:51]} Bxd5 {[%emt 0:24:20]} 17. exd5 {[%emt 0:00:24]} Nc4 {[%emt 0:04:51]} 18. Bc1 {[%emt 0:03:11]} a5 {[%emt 0:07:28]} 19. Nd2 {[%emt 0:06:26]} a4 {[%emt 0:02:49]} 20. Ne4 {[%emt 0:05:33]} b4 {[%emt 0:06:30]} 21. Bd3 {[%emt 0:16:58]} Rfc8 {[%emt 0:02:34]} 22. b3 {[%emt 0:09:20]} Na3+ {[%emt 0:01:52]} 23. Bxa3 {[%emt 0:00:13]} bxa3 {[%emt 0:00:25]} 24. Qd2 {[%emt 0:04:36]} g6 {[%emt 0:08:57]} 25. Ba6 {[%emt 0:07:54]} Rd8 {[%emt 0:02:52]} 26. Qc3 {[%emt 0:01:07]} Qa7 {[%emt 0:01:00]} 27. Qc4 {[%emt 0:01:11]} axb3 {[%emt 0:01:51]} 28. cxb3 {[%emt 0:00:38]} Rb6 {[%emt 0:02:29]} 29. Bb5 {[%emt 0:01:25]} Rdb8 {[%emt 0:00:32]} 30. Bc6 {[%emt 0:00:56]} Rb4 {[%emt 0:02:00]} 31. Qc3 {[%emt 0:00:31]} Kg7 {[%emt 0:03:58]} 32. Rh2 {[%emt 0:00:48]} Qa5 {[%emt 0:02:36]} 33. Rc2 {[%emt 0:00:19]} Nf4 {[%emt 0:00:39]} 34. Nf2 {[%emt 0:00:50]} Qa7 {[%emt 0:01:33]} 35. Ne4 {[%emt 0:00:31]} R8b6 {[%emt 0:00:32]} 36. Re1 {[%emt 0:00:45]} Qb8 {[%emt 0:00:38]} 37. Nd2 {[%emt 0:00:14]} Rd4 {[%emt 0:00:37]} 38. Re4 {[%emt 0:00:24]} Nxd5 {[%emt 0:00:42]} 39. Bxd5 {[%emt 0:00:20]} Rxd5 {[%emt 0:00:04]} 40. f4 {[%emt 0:01:12]} Rc5 {[%emt 0:01:03]} 41. Nc4 {[%emt 0:26:45]} Rbb5 {[%emt 0:31:10]} 42. Ree2 {[%emt 0:06:03]} Rb4 {[%emt 0:05:08]} 43. Qd3 {[%emt 0:01:55]} Rcb5 {[%emt 0:01:34]} 44. Rc3 {[%emt 0:01:25]} Kg8 {[%emt 0:03:53]} 45. Nxa3 {[%emt 0:02:44]} Rb7 {[%emt 0:02:44]} 46. fxe5 {[%emt 0:02:10]} Rxh4 {[%emt 0:01:15]} 47. Rec2 {[%emt 0:02:29]} Rh1+ {[%emt 0:02:24]} 48. Kb2 {[%emt 0:00:04]} Qa7 {[%emt 0:01:07]} 49. Rc8+ {[%emt 0:01:12]} Kg7 {[%emt 0:01:02]} 50. exd6 {[%emt 0:00:20]} Bxg5 {[%emt 0:00:18]} 51. Nb5 {[%emt 0:03:50]} Bf6+ {[%emt 0:00:30]} 52. Nc3 {[%emt 0:01:24]} Rd7 {[%emt 0:03:18]} 53. Qg3 {[%emt 0:01:20]} Qa6 {[%emt 0:01:13]} 54. Rc4 {[%emt 0:02:36]} Rxd6 {[%emt 0:00:50]} 55. Ra4 {[%emt 0:01:48]} Qb6 {[%emt 0:00:30]} 56. a3 {[%emt 0:00:43]} Rdd1 {[%emt 0:00:45]} 57. b4 {[%emt 0:00:51]} Rb1+ {[%emt 0:00:05]} 58. Ka2 {[%emt 0:00:06]} Qe6+ {[%emt 0:00:13]} 0-1